fUSD/lending_fUSD_20250101
["ID","MTS","AMOUNT","RATE_DAILY","PERIOD"]
[347332140,1735699834658,-709.73,0.00011061,2]
[347332141,1735699834668,-4672.16,0.00011061,2]
[347332142,1735699834677,-876.81,0.00011061,2]
[347332143,1735699834687,-500.0,0.00011061,2]
[347332144,1735699834696,-2008.632762,0.00011061,2]
[347332145,1735699834706,-500.0,0.00011061,2]
[347332146,1735699834715,-480.38089633,0.00011061,2]
[347332147,1735699834726,-14557.92,0.00011061,2]
[347332148,1735699834735,-652.91,0.00011061,2]
[347332149,1735699834745,-21473.59,0.00011061,2]
[347332150,1735699834755,-515.01,0.00011061,2]
[347332151,1735699834765,-4141.42,0.00011061,2]
[347332152,1735699834775,-566.02,0.00011061,2]
[347332153,1735699834785,-500.0,0.00011061,2]
[347332154,1735699834795,-1164.78,0.00011061,2]
[347332155,1735699834805,-1188.72,0.00011061,2]
[347332156,1735699834814,-1353.69,0.00011061,2]
[347332157,1735699834824,-567.98971744,0.00011061,2]
[347332158,1735699834833,-583.96,0.00011061,2]
[347332159,1735699834843,-912.37,0.00011061,2]
[347332160,1735699834853,-2359.75,0.00011061,2]
[347332161,1735699834862,-734.92,0.00011061,2]
[347332162,1735699834873,-9514.55,0.00011061,2]
[347332163,1735699834882,-1364.68,0.00011061,2]
[347332164,1735699834892,-1920.08,0.00011061,2]
[347332165,1735699834901,-1906.12,0.00011061,2]
[347332166,1735699834912,-5062.98,0.00011062,2]
[347332167,1735699834921,-4038.64,0.00011062,2]
[347332168,1735699834930,-500.0,0.00011062,2]
[347332169,1735699834940,-500.0,0.00011062,2]
[347332170,1735699834950,-500.0,0.00011062,2]
[347332171,1735699834961,-500.0,0.00011062,2]
[347332172,1735699834971,-1444.11,0.00011062,2]
[347332173,1735699834980,-1276.9,0.00011062,2]
[347332174,1735699834990,-500.0,0.00011062,2]
[347332175,1735699834999,-3827.8,0.00011062,2]
[347332176,1735699835009,-3408.34,0.00011062,2]
[347332177,1735699835020,-500.0,0.00011062,2]
[347332178,1735699835030,-500.0,0.00011062,2]
[347332179,1735699835039,-920.89,0.00011062,2]
[347332180,1735699835050,-500.0,0.00011062,2]
[347332181,1735699835060,-1338.59,0.00011062,2]
[347332182,1735699835069,-500.0,0.00011062,2]
[347332183,1735699835080,-151.50183477,0.00011062,2]
[347332184,1735699835089,-2318.7,0.00011062,2]
[347332185,1735699835100,-500.0,0.00011062,2]
[347332186,1735699835110,-936.06,0.00011062,2]
[347332187,1735699835121,-4330.73,0.00011062,2]
[347332188,1735699835131,-500.0,0.00011062,2]
[347332189,1735699835141,-1487.35,0.00011062,2]
[347332190,1735699835150,-500.0,0.00011062,2]
[347332191,1735699835160,-3310.88,0.00011062,2]
[347332192,1735699835169,-500.0,0.00011062,2]
[347332193,1735699835179,-500.0,0.00011062,2]
[347332194,1735699835189,-623.16,0.00011062,2]
[347332195,1735699835198,-4044.65,0.00011062,2]
[347332196,1735699835208,-500.0,0.00011062,2]
[347332197,1735699835218,-500.0,0.00011062,2]
[347332198,1735699835227,-2772.36,0.00011062,2]
[347332199,1735699835237,-500.0,0.00011062,2]
[347332200,1735699835247,-2564.42,0.00011062,2]
[347332201,1735699835257,-500.0,0.00011062,2]
[347332202,1735699835266,-1953.77,0.00011062,2]
[347332203,1735699835276,-4140.08,0.00011062,2]
[347332204,1735699835286,-500.0,0.00011062,2]
[347332205,1735699835297,-500.0,0.00011062,2]
[347332206,1735699835309,-2538.2,0.00011062,2]
[347332207,1735699835318,-500.0,0.00011062,2]
[347332208,1735699835328,-500.0,0.00011062,2]
[347332209,1735699835339,-500.0,0.00011062,2]
[347332210,1735699835348,-500.0,0.00011062,2]
[347332211,1735699835358,-500.0,0.00011062,2]
[347332212,1735699835368,-1362.48,0.00011062,2]
[347332213,1735699835381,-3721.18,0.00011062,2]
[347332214,1735699835391,-500.0,0.00011062,2]
[347332215,1735699835401,-500.0,0.00011062,2]
[347332216,1735699835410,-1952.73,0.00011062,2]
[347332217,1735699835420,-500.0,0.00011062,2]
[347332218,1735699835429,-500.0,0.00011062,2]
[347332219,1735699835439,-2009.98,0.00011062,2]
[347332220,1735699835448,-500.0,0.00011062,2]
[347332221,1735699835458,-500.0,0.00011062,2]
[347332222,1735699835468,-500.0,0.00011062,2]
[347332223,1735699835477,-1039.8,0.00011062,2]
[347332224,1735699835486,-500.0,0.00011062,2]
[347332225,1735699835496,-1729.45,0.00011062,2]
[347332226,1735699835505,-500.0,0.00011062,2]
[347332227,1735699835514,-500.0,0.00011062,2]
[347332228,1735699835524,-744.24,0.00011062,2]
[347332229,1735699835533,-823.96,0.00011062,2]
[347332230,1735699835543,-500.0,0.00011062,2]
[347332231,1735699835552,-4341.58,0.00011062,2]
[347332232,1735699835562,-500.0,0.00011062,2]
[347332233,1735699835572,-500.0,0.00011062,2]
[347332234,1735699835581,-1189.73,0.00011062,2]
[347332235,1735699835591,-500.0,0.00011062,2]
[347332236,1735699835600,-500.0,0.00011062,2]
[347332237,1735699835610,-500.0,0.00011062,2]
[347332238,1735699835619,-500.0,0.00011062,2]
[347332239,1735699835629,-502.7,0.00011062,2]
[347332240,1735699835638,-500.0,0.00011062,2]
[347332241,1735699835648,-804.76,0.00011062,2]
[347332242,1735699835657,-500.0,0.00011062,2]
[347332243,1735699835667,-1308.84,0.00011062,2]
[347332244,1735699835677,-216.69583099,0.00011062,2]
[347332245,1735699835687,-2477.37,0.00011062,2]
[347332246,1735699835696,-795.32,0.00011062,2]
[347332247,1735699835705,-500.0,0.00011062,2]
[347332248,1735699835715,-4338.25,0.00011062,2]
[347332249,1735699835724,-500.0,0.00011062,2]
[347332250,1735699835734,-1233.05,0.00011062,2]
[347332251,1735699835743,-1534.81,0.00011062,2]
[347332252,1735699835754,-500.0,0.00011062,2]
[347332253,1735699835764,-500.0,0.00011062,2]
[347332254,1735699835773,-1042.09,0.00011062,2]
[347332255,1735699835783,-2692.44,0.00011062,2]
[347332256,1735699835793,-500.0,0.00011062,2]
[347332257,1735699835803,-528.58,0.00011062,2]
[347332258,1735699835813,-176.50638287,0.00011062,2]
[347332259,1735699835822,-2162.48,0.00011062,2]
[347332260,1735699835832,-500.0,0.00011062,2]
[347332261,1735699835842,-1039.19,0.00011062,2]
[347332262,1735699835851,-2348.76,0.00011062,2]
[347332263,1735699835860,-230.02512332,0.00011062,2]
[347332264,1735699835870,-2446.0,0.00011062,2]
[347332265,1735699835879,-1293.54,0.00011062,2]
[347332266,1735699835901,-500.0,0.00011062,2]
[347332267,1735699835912,-500.0,0.00011062,2]
[347332268,1735699835923,-5244.48,0.00011062,2]
[347332269,1735699835933,-1556.63,0.00011062,2]
[347332270,1735699835943,-606.75,0.00011062,2]
[347332271,1735699835953,-2072.69,0.00011062,2]
[347332272,1735699835963,-500.0,0.00011062,2]
[347332273,1735699835973,-500.0,0.00011062,2]
[347332274,1735699835983,-1607.09,0.00011062,2]
[347332275,1735699835994,-500.0,0.00011062,2]
[347332276,1735699836004,-1026.26,0.00011062,2]
[347332277,1735699836014,-500.0,0.00011062,2]
[347332278,1735699836024,-5195.02,0.00011062,2]
[347332279,1735699836034,-17358.02,0.00011062,2]
[347332280,1735699836045,-2961.12,0.00011062,2]
[347332281,1735699836055,-454.09823198,0.00011062,2]
[347332282,1735699836065,-2129.17,0.00011062,2]
[347332283,1735699836075,-2801.09,0.00011062,2]
[347332284,1735699836085,-500.0,0.00011062,2]
[347332285,1735699836094,-500.0,0.00011062,2]
[347332286,1735699836104,-7196.89,0.00011062,2]
[347332287,1735699836114,-6581.33,0.00011062,2]
[347332288,1735699836124,-5231.53,0.00011062,2]
[347332289,1735699836134,-1110.61,0.00011062,2]
[347332290,1735699836144,-500.0,0.00011062,2]
[347332291,1735699836153,-2828.14,0.00011062,2]
[347332292,1735699836163,-500.0,0.00011062,2]
[347332293,1735699836173,-500.0,0.00011062,2]
[347332294,1735699836183,-500.0,0.00011062,2]
[347332295,1735699836194,-3888.84,0.00011062,2]
[347332296,1735699836204,-1959.56,0.00011062,2]
[347332297,1735699836214,-500.0,0.00011062,2]
[347332298,1735699836224,-2031.68,0.00011062,2]
[347332299,1735699836235,-500.0,0.00011062,2]
[347332300,1735699836245,-907.15,0.00011062,2]
[347332301,1735699836255,-589.56,0.00011062,2]
[347332302,1735699836265,-500.0,0.00011062,2]
[347332303,1735699836275,-500.0,0.00011062,2]
[347332304,1735699836285,-500.0,0.00011062,2]
[347332305,1735699836296,-1318.59,0.00011062,2]
[347332306,1735699836309,-1062.53,0.00011062,2]
[347332307,1735699836319,-500.0,0.00011062,2]
[347332308,1735699836329,-5390.58,0.00011062,2]
[347332309,1735699836339,-500.0,0.00011062,2]
[347332310,1735699836349,-500.0,0.00011062,2]
[347332311,1735699836359,-1109.58,0.00011062,2]
[347332312,1735699836369,-500.0,0.00011062,2]
[347332313,1735699836379,-632.5,0.00011062,2]
[347332314,1735699836390,-2970.46,0.00011062,2]
[347332315,1735699836406,-2907.56019658,0.00011062,2]
[347332316,1735699837347,-637.20980342,0.00011062,2]
[347332317,1735699837357,-3435.19,0.00011062,2]
[347332318,1735699837367,-2987.2,0.00011062,2]
[347332319,1735699837378,-500.0,0.00011062,2]
[347332320,1735699837387,-500.0,0.00011062,2]
[347332321,1735699837397,-2834.75,0.00011062,2]
[347332322,1735699837406,-8707.59,0.00011062,2]
[347332323,1735699837415,-516.03784741,0.00011062,2]
[347332324,1735699837425,-500.0,0.00011062,2]
[347332325,1735699837435,-2496.43,0.00011062,2]
[347332326,1735699837445,-1681.45,0.00011062,2]
[347332327,1735699837454,-500.0,0.00011062,2]
[347332328,1735699837464,-4385.35,0.00011062,2]
[347332329,1735699837474,-3213.46,0.00011062,2]
[347332330,1735699837483,-500.0,0.00011062,2]
[347332331,1735699837493,-1376.0,0.00011062,2]
[347332332,1735699837503,-500.0,0.00011062,2]
[347332333,1735699837512,-639.16,0.00011062,2]
[347332334,1735699837522,-500.0,0.00011062,2]
[347332335,1735699837532,-500.0,0.00011062,2]
[347332336,1735699837542,-4486.3,0.00011062,2]
[347332337,1735699837551,-500.0,0.00011062,2]
[347332338,1735699837560,-11266.42697374,0.00011062,2]
[347332344,1735699839885,-500.0,0.0001106,2]
[347332345,1735699839895,-235.15365519,0.00011061,2]
[347332346,1735699839908,-1274.92466572,0.00011061,2]
[347332348,1735699840039,-62.24401906,0.00011061,2]
[347332349,1735699840050,-1204.71546715,0.00011061,2]
[347332350,1735699840062,-8956.1,0.00011061,2]
[347332351,1735699840073,-465.401043,0.00011061,2]
[347332352,1735699840085,-3497.6150036,0.00011061,2]
[347332353,1735699840096,-1944.0,0.00011061,2]
[347332354,1735699840107,-361.37125032,0.00011061,2]
[347332372,1735699840634,-1272.5779999,0.00011061,2]
[347332375,1735699840646,-854.04481061,0.00011061,2]
[347332380,1735699840688,-673.28091224,0.00011061,2]
[347332382,1735699840700,-262.520001,0.00011061,2]
[347332384,1735699840711,-1362.39004,0.00011061,2]
[347332386,1735699840723,-91980.13845432,0.00011061,2]
[347332387,1735699840734,-1917.68892635,0.00011061,2]
[347332389,1735699840745,-6008.27492,0.00011061,2]
[347332390,1735699840757,-499.63985511,0.00011061,2]
[347332391,1735699840769,-500.0,0.00011061,2]
[347332396,1735699843232,-1223.7,0.0001106,2]
[347332398,1735699843242,-29356.08,0.00011061,2]
[347332400,1735699843255,-4836.0,0.00011061,2]
[347332403,1735699843461,-325783.40806221,0.00011061,2]
[347332404,1735699843472,-2557.34,0.00011061,2]
[347332405,1735699843482,-11688.03302626,0.00011062,2]
[347332406,1735699843492,-500.0,0.00011062,2]
[347332407,1735699843502,-12228.16,0.00011062,2]
[347332408,1735699843512,-4751.29,0.00011062,2]
[347332409,1735699843522,-4156.18,0.00011062,2]
[347332410,1735699843537,-3763.64,0.00011062,2]
[347332411,1735699843548,-500.0,0.00011062,2]
[347332412,1735699843558,-1329.56,0.00011062,2]
[347332413,1735699843568,-500.0,0.00011062,2]
[347332414,1735699843578,-2269.2,0.00011062,2]
[347332415,1735699843588,-629.48,0.00011062,2]
[347332416,1735699843598,-2880.65,0.00011062,2]
[347332417,1735699843608,-500.0,0.00011062,2]
[347332418,1735699843619,-272.31681927,0.00011062,2]
[347332419,1735699843629,-500.0,0.00011062,2]
[347332420,1735699843639,-5060.21,0.00011062,2]
[347332421,1735699843650,-500.0,0.00011062,2]
[347332422,1735699843659,-500.0,0.00011062,2]
[347332423,1735699843669,-15112.79,0.00011062,2]
[347332424,1735699843679,-151.0,0.00011062,2]
[347332425,1735699843690,-151.0,0.00011062,2]
[347332426,1735699843700,-151.0,0.00011062,2]
[347332427,1735699843710,-151.0,0.00011062,2]
[347332428,1735699843720,-289.62347543,0.00011062,2]
[347332429,1735699843730,-3854.28,0.00011062,2]
[347332430,1735699843740,-500.0,0.00011062,2]
[347332431,1735699843751,-500.0,0.00011062,2]
[347332432,1735699843761,-3268.13,0.00011062,2]
[347332433,1735699843771,-568.73,0.00011062,2]
[347332434,1735699843782,-500.0,0.00011062,2]
[347332435,1735699843792,-4630.95,0.00011062,2]
[347332436,1735699843804,-4170.64,0.00011062,2]
[347332437,1735699843814,-500.0,0.00011062,2]
[347332438,1735699843824,-500.0,0.00011062,2]
[347332439,1735699843835,-4701.59,0.00011062,2]
[347332440,1735699843845,-500.0,0.00011062,2]
[347332441,1735699843856,-525.89,0.00011062,2]
[347332442,1735699843866,-6408.35,0.00011062,2]
[347332443,1735699843876,-500.0,0.00011062,2]
[347332444,1735699843887,-3934.11,0.00011062,2]
[347332445,1735699843897,-500.0,0.00011062,2]
[347332446,1735699843908,-500.0,0.00011062,2]
[347332447,1735699843919,-500.0,0.00011062,2]
[347332448,1735699843930,-2882.85,0.00011062,2]
[347332449,1735699843941,-846.0,0.00011063,2]
[347332450,1735699843951,-104615.57464131,0.00011063,2]
[347332451,1735699843964,-429.26652671,0.00011063,2]
[347332452,1735699843977,-1208.10939751,0.00011063,2]
[347332453,1735699843989,-1273.949995,0.00011063,2]
[347332454,1735699844002,-417.22100562,0.00011063,2]
[347332455,1735699844014,-937.41453633,0.00011063,2]
[347332456,1735699844027,-1845.66805756,0.00011063,2]
[347332457,1735699844040,-49260.0,0.00011063,2]
[347332458,1735699844065,-830.81828469,0.00011063,2]
[347332459,1735699844080,-1247.33195353,0.00011063,2]
[347332460,1735699844094,-1786.46013025,0.00011063,2]
[347332461,1735699844108,-990.69372928,0.00011063,2]
[347332462,1735699844120,-1104.77514956,0.00011063,2]
[347332463,1735699844133,-1192.20706,0.00011063,2]
[347332464,1735699844372,-365.7149734,0.00011061,2]
[347332465,1735699846346,-595.1750266,0.00011061,2]
[347332466,1735699846356,-500.0,0.00011061,2]
[347332467,1735699846366,-8409.89,0.00011062,2]
[347332468,1735699846376,-500.0,0.00011062,2]
[347332469,1735699846386,-82860.50953265,0.00011063,2]
[347332470,1735699846395,-157.288276,0.00011063,2]
[347332471,1735699846405,-1279.82,0.00011064,2]
[347332472,1735699846415,-500.0,0.00011064,2]
[347332473,1735699846424,-2043.33,0.00011064,2]
[347332474,1735699846434,-500.0,0.00011064,2]
[347332475,1735699846443,-500.0,0.00011064,2]
[347332476,1735699846453,-500.0,0.00011064,2]
[347332477,1735699846463,-834.87,0.00011064,2]
[347332478,1735699846472,-500.0,0.00011064,2]
[347332479,1735699846482,-900.81,0.00011064,2]
[347332480,1735699846491,-595.45,0.00011064,2]
[347332481,1735699846501,-500.0,0.00011064,2]
[347332482,1735699846511,-627.52,0.00011064,2]
[347332483,1735699846521,-500.0,0.00011064,2]
[347332484,1735699846531,-500.0,0.00011064,2]
[347332485,1735699846540,-1176.45,0.00011064,2]
[347332486,1735699846550,-575.43,0.00011064,2]
[347332488,1735699846559,-500.0,0.00011064,2]
[347332489,1735699846569,-888.6,0.00011064,2]
[347332490,1735699846579,-995.68,0.00011064,2]
[347332491,1735699846589,-500.0,0.00011064,2]
[347332492,1735699846600,-1056.22,0.00011064,2]
[347332493,1735699846871,-500.0,0.00011064,2]
[347332494,1735699846959,-500.20555774,0.00011064,2]
[347332495,1735699846970,-924.82,0.00011064,2]
[347332496,1735699846980,-500.0,0.00011064,2]
[347332497,1735699846989,-670.68,0.00011064,2]
[347332498,1735699846998,-1518.52,0.00011064,2]
[347332499,1735699847008,-1502.36,0.00011064,2]
[347332500,1735699847018,-824.6,0.00011064,2]
[347332501,1735699847027,-925.9,0.00011064,2]
[347332502,1735699847037,-514.95,0.00011064,2]
[347332503,1735699847046,-500.0,0.00011064,2]
[347332504,1735699847055,-844.53,0.00011064,2]
[347332505,1735699847065,-500.0,0.00011064,2]
[347332506,1735699847075,-500.0,0.00011064,2]
[347332507,1735699847084,-542.18,0.00011064,2]
[347332508,1735699847093,-500.0,0.00011064,2]
[347332509,1735699847103,-1733.14,0.00011064,2]
[347332510,1735699847112,-2654.42,0.00011064,2]
[347332511,1735699847121,-640.58,0.00011064,2]
[347332512,1735699847130,-500.0,0.00011064,2]
[347332513,1735699847139,-1371.42,0.00011064,2]
[347332514,1735699847149,-859.93,0.00011064,2]
[347332515,1735699847158,-566.58,0.00011064,2]
[347332516,1735699847167,-1516.29,0.00011064,2]
[347332517,1735699847176,-500.0,0.00011064,2]
[347332518,1735699847185,-500.0,0.00011064,2]
[347332519,1735699847194,-500.0,0.00011064,2]
[347332520,1735699847204,-1339.02,0.00011064,2]
[347332521,1735699847213,-500.0,0.00011064,2]
[347332522,1735699847223,-500.0,0.00011064,2]
[347332523,1735699847233,-1479.08,0.00011064,2]
[347332524,1735699847242,-500.0,0.00011064,2]
[347332525,1735699847252,-500.0,0.00011064,2]
[347332526,1735699847261,-500.0,0.00011064,2]
[347332527,1735699847271,-1252.65,0.00011064,2]
[347332528,1735699847280,-500.0,0.00011064,2]
[347332529,1735699847290,-500.0,0.00011064,2]
[347332530,1735699847302,-500.0,0.00011064,2]
[347332531,1735699847312,-1186.68,0.00011064,2]
[347332532,1735699847322,-1846.38,0.00011064,2]
[347332533,1735699847332,-500.0,0.00011064,2]
[347332534,1735699847341,-1501.77,0.00011064,2]
[347332535,1735699847352,-1386.62,0.00011064,2]
[347332536,1735699847361,-986.41,0.00011064,2]
[347332537,1735699847370,-526.69,0.00011064,2]
[347332538,1735699847380,-500.0,0.00011064,2]
[347332539,1735699847389,-640.44,0.00011064,2]
[347332540,1735699847400,-637.12,0.00011064,2]
[347332541,1735699847409,-2862.98,0.00011064,2]
[347332542,1735699847421,-500.0,0.00011064,2]
[347332543,1735699847431,-1498.49,0.00011064,2]
[347332544,1735699847443,-664.65,0.00011064,2]
[347332545,1735699847454,-500.0,0.00011064,2]
[347332546,1735699847464,-744.89,0.00011064,2]
[347332547,1735699847474,-948.12,0.00011064,2]
[347332548,1735699847485,-500.0,0.00011064,2]
[347332549,1735699847494,-1651.11,0.00011064,2]
[347332550,1735699847506,-819.45,0.00011064,2]
[347332551,1735699847518,-1514.71,0.00011064,2]
[347332552,1735699847529,-500.0,0.00011064,2]
[347332553,1735699847539,-1241.92,0.00011064,2]
[347332554,1735699847549,-500.0,0.00011064,2]
[347332555,1735699847559,-500.0,0.00011064,2]
[347332556,1735699847568,-500.0,0.00011064,2]
[347332557,1735699847578,-920.43,0.00011064,2]
[347332558,1735699847588,-957.81,0.00011064,2]
[347332559,1735699847598,-580.76514455,0.00011064,2]
[347332560,1735699847607,-549.06,0.00011064,2]
[347332561,1735699847616,-500.0,0.00011064,2]
[347332562,1735699847626,-500.0,0.00011064,2]
[347332563,1735699847635,-500.0,0.00011064,2]
[347332564,1735699847645,-500.0,0.00011064,2]
[347332565,1735699847655,-500.0,0.00011064,2]
[347332566,1735699847663,-543.07,0.00011064,2]
[347332567,1735699847673,-1148.73,0.00011064,2]
[347332568,1735699847682,-1040.19,0.00011064,2]
[347332569,1735699847691,-500.0,0.00011064,2]
[347332570,1735699847701,-1233.04,0.00011064,2]
[347332571,1735699847710,-500.0,0.00011064,2]
[347332572,1735699847719,-500.0,0.00011064,2]
[347332573,1735699847729,-500.0,0.00011064,2]
[347332574,1735699847738,-478.11614862,0.00011064,2]
[347332575,1735699847748,-933.87,0.00011064,2]
[347332576,1735699847757,-500.0,0.00011064,2]
[347332577,1735699847767,-500.0,0.00011064,2]
[347332578,1735699847776,-500.0,0.00011064,2]
[347332579,1735699847786,-2688.28,0.00011064,2]
[347332580,1735699847795,-500.0,0.00011064,2]
[347332581,1735699847805,-500.0,0.00011064,2]
[347332582,1735699847815,-1027.54,0.00011064,2]
[347332583,1735699847825,-597.74,0.00011064,2]
[347332584,1735699847834,-1552.45,0.00011064,2]
[347332585,1735699847845,-948.56,0.00011064,2]
[347332586,1735699847854,-2290.14,0.00011064,2]
[347332587,1735699847864,-536.78,0.00011064,2]
[347332588,1735699847874,-515.63,0.00011064,2]
[347332589,1735699847884,-1285.8,0.00011064,2]
[347332590,1735699847893,-1713.4,0.00011064,2]
[347332591,1735699847903,-566.95,0.00011064,2]
[347332592,1735699847914,-580.25,0.00011064,2]
[347332593,1735699847923,-500.0,0.00011064,2]
[347332594,1735699847933,-1098.34,0.00011064,2]
[347332595,1735699847943,-4742.1,0.00011064,2]
[347332596,1735699847953,-500.0,0.00011064,2]
[347332597,1735699847963,-2564.49,0.00011064,2]
[347332598,1735699847972,-500.0,0.00011064,2]
[347332599,1735699847982,-500.0,0.00011064,2]
[347332600,1735699847991,-4963.74,0.00011064,2]
[347332601,1735699848000,-500.0,0.00011064,2]
[347332602,1735699848010,-814.8,0.00011064,2]
[347332603,1735699848019,-1487.58,0.00011064,2]
[347332604,1735699848029,-1713.67,0.00011064,2]
[347332605,1735699848039,-500.0,0.00011064,2]
[347332606,1735699848049,-1584.02,0.00011064,2]
[347332607,1735699848059,-952.77,0.00011064,2]
[347332608,1735699848069,-500.0,0.00011064,2]
[347332609,1735699848079,-500.0,0.00011064,2]
[347332610,1735699848089,-500.0,0.00011064,2]
[347332611,1735699848098,-1470.57,0.00011064,2]
[347332612,1735699848107,-500.0,0.00011064,2]
[347332613,1735699848117,-500.0,0.00011064,2]
[347332614,1735699848126,-500.0,0.00011064,2]
[347332615,1735699848136,-599.17,0.00011064,2]
[347332616,1735699848145,-1138.55,0.00011064,2]
[347332617,1735699848154,-2972.47,0.00011064,2]
[347332618,1735699848164,-500.0,0.00011064,2]
[347332619,1735699848173,-723.07,0.00011064,2]
[347332620,1735699848182,-500.0,0.00011064,2]
[347332621,1735699848192,-500.0,0.00011064,2]
[347332622,1735699848201,-3093.49,0.00011064,2]
[347332623,1735699848211,-927.29,0.00011064,2]
[347332624,1735699848221,-540.9,0.00011064,2]
[347332625,1735699848230,-500.0,0.00011064,2]
[347332626,1735699848240,-1055.87,0.00011064,2]
[347332627,1735699848250,-500.0,0.00011064,2]
[347332628,1735699848259,-1565.34,0.00011064,2]
[347332629,1735699848268,-1262.19,0.00011064,2]
[347332630,1735699848278,-500.0,0.00011064,2]
[347332631,1735699848287,-500.0,0.00011064,2]
[347332632,1735699848299,-597.27,0.00011064,2]
[347332633,1735699848311,-500.0,0.00011064,2]
[347332634,1735699848320,-935.2,0.00011064,2]
[347332635,1735699848331,-2741.33,0.00011064,2]
[347332636,1735699848341,-855.75,0.00011064,2]
[347332637,1735699848350,-795.24,0.00011064,2]
[347332638,1735699848360,-1155.84,0.00011064,2]
[347332639,1735699848369,-500.0,0.00011064,2]
[347332640,1735699848379,-3518.51,0.00011064,2]
[347332641,1735699848388,-2412.09,0.00011064,2]
[347332642,1735699848398,-849.11,0.00011064,2]
[347332643,1735699848407,-2967.97,0.00011064,2]
[347332644,1735699848416,-514.24,0.00011064,2]
[347332645,1735699848425,-514.87,0.00011064,2]
[347332646,1735699848435,-1483.2,0.00011064,2]
[347332647,1735699848446,-755.95,0.00011064,2]
[347332648,1735699848456,-500.0,0.00011064,2]
[347332649,1735699848466,-621.6,0.00011064,2]
[347332650,1735699848476,-1008.36,0.00011064,2]
[347332651,1735699848486,-614.67,0.00011064,2]
[347332652,1735699848495,-500.0,0.00011064,2]
[347332653,1735699848504,-500.0,0.00011064,2]
[347332654,1735699848514,-1338.08,0.00011064,2]
[347332655,1735699848524,-5506.55,0.00011064,2]
[347332656,1735699848533,-500.0,0.00011064,2]
[347332657,1735699848543,-3358.98,0.00011064,2]
[347332658,1735699848552,-910.69,0.00011064,2]
[347332659,1735699848562,-500.0,0.00011064,2]
[347332660,1735699848572,-950.4,0.00011064,2]
[347332661,1735699848582,-500.0,0.00011064,2]
[347332662,1735699848591,-500.0,0.00011064,2]
[347332663,1735699848601,-1475.08,0.00011064,2]
[347332664,1735699848611,-500.0,0.00011064,2]
[347332665,1735699848620,-500.0,0.00011064,2]
[347332666,1735699848630,-2587.39,0.00011064,2]
[347332667,1735699848641,-500.0,0.00011064,2]
[347332668,1735699848650,-4776.96,0.00011064,2]
[347332669,1735699848659,-500.0,0.00011064,2]
[347332670,1735699848669,-2078.16,0.00011064,2]
[347332671,1735699848678,-500.0,0.00011064,2]
[347332672,1735699848688,-4151.43,0.00011064,2]
[347332673,1735699848697,-1303.52,0.00011064,2]
[347332674,1735699848707,-500.0,0.00011064,2]
[347332675,1735699848718,-516.28,0.00011064,2]
[347332676,1735699848727,-500.0,0.00011064,2]
[347332677,1735699848737,-2729.77,0.00011064,2]
[347332678,1735699848746,-2507.11,0.00011064,2]
[347332679,1735699848756,-500.98,0.00011064,2]
[347332680,1735699848767,-781.73,0.00011064,2]
[347332681,1735699848777,-523.62,0.00011064,2]